[Event "January 9 Early 2024"]
[Site "https://www.chess.com"]
[Date "2024.01.11"]
[Round "1"]
[White "Lysyj, Igor"]
[Black "Nikologorsky, Matfei"]
[Result "1-0"]
[Board "216"]
[TimeControl "180+1"]
[WhiteFideId "4150120"]
[BlackFideId "24102474"]
[WhiteElo "2862"]
[BlackElo "2466"]
[WhiteTeam "FID"]
[BlackTeam "FID"]
[WhiteClock "0:00:43"]
[BlackClock "0:00:07"]

1. d4 {[%clk 0:02:59]}  Nf6 {[%clk 0:02:59]} 2. c4 {[%clk 0:02:59]}  e6 {[%clk 0:02:59]} 3. Nf3 {[%clk 0:02:58]}  b6 {[%clk 0:02:58]} 4. g3 {[%clk 0:02:57]}  Bb7 {[%clk 0:02:47]} 5. Bg2 {[%clk 0:02:57]}  g6 {[%clk 0:02:39]} 6. Nc3 {[%clk 0:02:54]}  Bg7 {[%clk 0:02:39]} 7. d5 {[%clk 0:02:53]}  O-O {[%clk 0:02:30]} 8. O-O {[%clk 0:02:52]}  Re8 {[%clk 0:02:15]} 9. Bf4 {[%clk 0:02:44]}  d6 {[%clk 0:02:14]} 10. Qd2 {[%clk 0:02:39]}  Nbd7 {[%clk 0:02:13]} 11. Rad1 {[%clk 0:02:26]}  a5 {[%clk 0:02:07]} 12. Bg5 {[%clk 0:02:25]}  Nc5 {[%clk 0:01:51]} 13. Qc2 {[%clk 0:02:22]}  h6 {[%clk 0:01:44]} 14. Bc1 {[%clk 0:02:21]}  exd5 {[%clk 0:01:35]} 15. cxd5 {[%clk 0:02:21]}  Ba6 {[%clk 0:01:35]} 16. Nd4 {[%clk 0:02:20]}  Qe7 {[%clk 0:01:30]} 17. Rfe1 {[%clk 0:02:17]}  Ng4 {[%clk 0:01:23]} 18. h3 {[%clk 0:02:11]}  Ne5 {[%clk 0:01:22]} 19. Ncb5 {[%clk 0:01:53]}  Bxb5 {[%clk 0:00:55]} 20. Nxb5 {[%clk 0:01:52]}  Qd7 {[%clk 0:00:52]} 21. Nd4 {[%clk 0:01:49]}  Qe7 {[%clk 0:00:51]} 22. b3 {[%clk 0:01:48]}  Na6 {[%clk 0:00:33]} 23. a3 {[%clk 0:01:46]}  Nc5 {[%clk 0:00:33]} 24. f4 {[%clk 0:01:37]}  Ned7 {[%clk 0:00:32]} 25. Nc6 {[%clk 0:01:32]}  Qf6 {[%clk 0:00:29]} 26. e4 {[%clk 0:01:23]}  Qc3 {[%clk 0:00:28]} 27. Qxc3 {[%clk 0:01:22]}  Bxc3 {[%clk 0:00:29]} 28. Re3 {[%clk 0:01:22]}  Bg7 {[%clk 0:00:29]} 29. Bd2 {[%clk 0:01:13]}  f5 {[%clk 0:00:25]} 30. exf5 {[%clk 0:01:08]}  Rxe3 {[%clk 0:00:24]} 31. Bxe3 {[%clk 0:01:08]}  gxf5 {[%clk 0:00:24]} 32. b4 {[%clk 0:01:07]}  axb4 {[%clk 0:00:24]} 33. axb4 {[%clk 0:01:07]}  Na4 {[%clk 0:00:22]} 34. Ne7+ {[%clk 0:01:06]}  Kf7 {[%clk 0:00:22]} 35. Nxf5 {[%clk 0:01:06]}  Nc3 {[%clk 0:00:22]} 36. Rd3 {[%clk 0:01:04]}  Ra1+ {[%clk 0:00:21]} 37. Kh2 {[%clk 0:01:04]}  Nd1 {[%clk 0:00:20]} 38. Bg1 {[%clk 0:00:59]}  Bf6 {[%clk 0:00:20]} 39. Nxh6+ {[%clk 0:00:59]}  Kg6 {[%clk 0:00:20]} 40. Ng4 {[%clk 0:00:59]}  Bg7 {[%clk 0:00:21]} 41. Rd2 {[%clk 0:00:57]}  Nc3 {[%clk 0:00:18]} 42. Rc2 {[%clk 0:00:54]}  Nb5 {[%clk 0:00:17]} 43. Be4+ {[%clk 0:00:52]}  Kf7 {[%clk 0:00:17]} 44. Bf5 {[%clk 0:00:50]}  Nf6 {[%clk 0:00:17]} 45. Be6+ {[%clk 0:00:49]}  Ke7 {[%clk 0:00:17]} 46. Nxf6 {[%clk 0:00:48]}  Bxf6 {[%clk 0:00:17]} 47. Kg2 {[%clk 0:00:47]}  Nd4 {[%clk 0:00:18]} 48. Bxd4 {[%clk 0:00:47]}  Bxd4 {[%clk 0:00:18]} 49. Rxc7+ {[%clk 0:00:47]}  Kf6 {[%clk 0:00:19]} 50. h4 {[%clk 0:00:47]}  Ra2+ {[%clk 0:00:18]} 51. Kf3 {[%clk 0:00:46]}  Rb2 {[%clk 0:00:19]} 52. h5 {[%clk 0:00:44]}  Rb3+ {[%clk 0:00:08]} 53. Kg4 {[%clk 0:00:43]}  Rxg3+ {[%clk 0:00:07]} 54. Kxg3 {[%clk 0:00:43]}  Bf2+ {[%clk 0:00:07]} 55. Kg4 {[%clk 0:00:43]}  b5 {[%clk 0:00:07]} 56. Rf7# {[%clk 0:00:43]} 1-0

[Event "January 9 Early 2024"]
[Site "https://www.chess.com"]
[Date "2024.01.11"]
[Round "1"]
[White "Blahynka, Martin"]
[Black "Hambleton, Aman"]
[Result "0-1"]
[Board "219"]
[TimeControl "180+1"]
[WhiteFideId "334766"]
[BlackFideId "2606577"]
[WhiteElo "2427"]
[BlackElo "2771"]
[WhiteTeam "CZE"]
[BlackTeam "CAN"]
[WhiteClock "0:00:03"]
[BlackClock "0:00:02"]

1. c4 {[%clk 0:03:00]}  c5 {[%clk 0:02:58]} 2. Nf3 {[%clk 0:03:00]}  b6 {[%clk 0:02:58]} 3. g3 {[%clk 0:02:58]}  Bb7 {[%clk 0:02:57]} 4. Bg2 {[%clk 0:02:59]}  Nf6 {[%clk 0:02:53]} 5. O-O {[%clk 0:02:59]}  e6 {[%clk 0:02:45]} 6. d4 {[%clk 0:02:59]}  cxd4 {[%clk 0:02:45]} 7. Nxd4 {[%clk 0:03:00]}  Bxg2 {[%clk 0:02:45]} 8. Kxg2 {[%clk 0:03:01]}  Qc7 {[%clk 0:02:45]} 9. b3 {[%clk 0:02:42]}  Qb7+ {[%clk 0:02:32]} 10. f3 {[%clk 0:02:42]}  a6 {[%clk 0:02:30]} 11. e4 {[%clk 0:02:34]}  d6 {[%clk 0:02:27]} 12. Nc2 {[%clk 0:02:04]}  Be7 {[%clk 0:02:16]} 13. Nc3 {[%clk 0:01:51]}  O-O {[%clk 0:02:00]} 14. Qe2 {[%clk 0:01:48]}  Nbd7 {[%clk 0:01:15]} 15. Bb2 {[%clk 0:01:45]}  Rfe8 {[%clk 0:01:06]} 16. Rad1 {[%clk 0:01:39]}  Rac8 {[%clk 0:01:05]} 17. Ne3 {[%clk 0:01:36]}  h5 {[%clk 0:01:02]} 18. h4 {[%clk 0:01:28]}  Ne5 {[%clk 0:00:52]} 19. Rd2 {[%clk 0:01:00]}  Rc7 {[%clk 0:00:23]} 20. Rfd1 {[%clk 0:01:00]}  Rb8 {[%clk 0:00:23]} 21. a4 {[%clk 0:00:58]}  Ned7 {[%clk 0:00:19]} 22. Re1 {[%clk 0:00:37]}  Nc5 {[%clk 0:00:18]} 23. Qd1 {[%clk 0:00:37]}  Re8 {[%clk 0:00:08]} 24. Kh2 {[%clk 0:00:37]}  Rcc8 {[%clk 0:00:07]} 25. Ng2 {[%clk 0:00:36]}  Qc6 {[%clk 0:00:04]} 26. Nf4 {[%clk 0:00:35]}  g6 {[%clk 0:00:03]} 27. Re3 {[%clk 0:00:20]}  Ncd7 {[%clk 0:00:01]} 28. Nce2 {[%clk 0:00:18]}  Ne5 {[%clk 0:00:01]} 29. Nd4 {[%clk 0:00:17]}  Qc7 {[%clk 0:00:01]} 30. Nfe2 {[%clk 0:00:14]}  Nfg4+ {[%clk 0:00:01]} 31. fxg4 {[%clk 0:00:11]}  Nxg4+ {[%clk 0:00:02]} 32. Kh1 {[%clk 0:00:10]}  Nxe3 {[%clk 0:00:03]} 33. Qg1 {[%clk 0:00:09]}  Ng4 {[%clk 0:00:03]} 34. Ba3 {[%clk 0:00:06]}  Bf6 {[%clk 0:00:02]} 35. Nf3 {[%clk 0:00:06]}  Red8 {[%clk 0:00:02]} 36. Nf4 {[%clk 0:00:03]}  Qb7 {[%clk 0:00:02]} 0-1

[Event "January 9 Early 2024"]
[Site "https://www.chess.com"]
[Date "2024.01.11"]
[Round "1"]
[White "Arslanov, Shamil"]
[Black "Piscicelli, Daniel Orlando"]
[Result "1-0"]
[Board "223"]
[TimeControl "180+1"]
[WhiteFideId "4192826"]
[BlackFideId "101958"]
[WhiteElo "2635"]
[BlackElo "2289"]
[WhiteTeam "RUS"]
[BlackTeam "ARG"]
[WhiteClock "0:00:38"]
[BlackClock "0:00:05"]

1. d4 {[%clk 0:02:59]}  Nf6 {[%clk 0:02:59]} 2. f3 {[%clk 0:02:58]}  g6 {[%clk 0:02:59]} 3. e4 {[%clk 0:02:57]}  d5 {[%clk 0:02:59]} 4. Bg5 {[%clk 0:02:54]}  dxe4 {[%clk 0:02:53]} 5. Nc3 {[%clk 0:02:53]}  exf3 {[%clk 0:02:46]} 6. Nxf3 {[%clk 0:02:54]}  Bg7 {[%clk 0:02:44]} 7. Qd2 {[%clk 0:02:54]}  O-O {[%clk 0:02:28]} 8. O-O-O {[%clk 0:02:53]}  Bg4 {[%clk 0:02:22]} 9. Be2 {[%clk 0:02:52]}  Nbd7 {[%clk 0:02:15]} 10. h3 {[%clk 0:02:49]}  Bf5 {[%clk 0:02:12]} 11. Qf4 {[%clk 0:02:32]}  Nh5 {[%clk 0:01:49]} 12. Qh4 {[%clk 0:02:29]}  f6 {[%clk 0:01:38]} 13. Be3 {[%clk 0:01:56]}  Bh8 {[%clk 0:01:11]} 14. g4 {[%clk 0:01:54]}  Ng7 {[%clk 0:01:06]} 15. gxf5 {[%clk 0:01:52]}  Nxf5 {[%clk 0:01:07]} 16. Bc4+ {[%clk 0:01:51]}  Kg7 {[%clk 0:01:02]} 17. Qf2 {[%clk 0:01:40]}  Nb6 {[%clk 0:00:59]} 18. Bd3 {[%clk 0:01:36]}  Nd6 {[%clk 0:00:19]} 19. h4 {[%clk 0:01:31]}  e6 {[%clk 0:00:17]} 20. h5 {[%clk 0:01:31]}  f5 {[%clk 0:00:16]} 21. hxg6 {[%clk 0:01:30]}  hxg6 {[%clk 0:00:17]} 22. Bh6+ {[%clk 0:01:29]}  Kf7 {[%clk 0:00:16]} 23. Ng5+ {[%clk 0:01:29]}  Ke7 {[%clk 0:00:14]} 24. Rhe1 {[%clk 0:01:30]}  Kd7 {[%clk 0:00:13]} 25. Bxf8 {[%clk 0:01:29]}  Qxg5+ {[%clk 0:00:12]} 26. Kb1 {[%clk 0:01:29]}  Rxf8 {[%clk 0:00:11]} 27. Nb5 {[%clk 0:01:21]}  Nxb5 {[%clk 0:00:10]} 28. Bxb5+ {[%clk 0:01:22]}  c6 {[%clk 0:00:10]} 29. Bd3 {[%clk 0:01:15]}  Nd5 {[%clk 0:00:10]} 30. a3 {[%clk 0:01:12]}  Qf6 {[%clk 0:00:10]} 31. c4 {[%clk 0:00:59]}  Nc7 {[%clk 0:00:09]} 32. Rd2 {[%clk 0:00:38]}  Qxd4 {[%clk 0:00:06]} 33. Bc2 {[%clk 0:00:35]}  Qxd2 {[%clk 0:00:02]} 34. Qxd2+ {[%clk 0:00:36]}  Ke7 {[%clk 0:00:02]} 35. Qg5+ {[%clk 0:00:36]}  Kd7 {[%clk 0:00:02]} 36. Qxg6 {[%clk 0:00:36]}  Rf6 {[%clk 0:00:01]} 37. Qh7+ {[%clk 0:00:36]}  Kc8 {[%clk 0:00:02]} 38. Qxh8+ {[%clk 0:00:36]}  Ne8 {[%clk 0:00:02]} 39. Qxe8+ {[%clk 0:00:36]}  Kc7 {[%clk 0:00:03]} 40. Qe7+ {[%clk 0:00:37]}  Kb6 {[%clk 0:00:04]} 41. Qxf6 {[%clk 0:00:38]}  Kc5 {[%clk 0:00:05]} 42. Qxe6 {[%clk 0:00:38]}  Kb6 {[%clk 0:00:06]} 43. Qxf5 {[%clk 0:00:39]}  Ka6 {[%clk 0:00:04]} 44. Re6 {[%clk 0:00:39]}  Kb6 {[%clk 0:00:05]} 45. Qb5+ {[%clk 0:00:38]}  Kc7 {[%clk 0:00:05]} 46. Re7+ {[%clk 0:00:38]}  Kd6 {[%clk 0:00:05]} 47. Qe5# {[%clk 0:00:38]} 1-0

[Event "January 9 Early 2024"]
[Site "https://www.chess.com"]
[Date "2024.01.11"]
[Round "1"]
[White "Foerster-Yialamas, Lucas"]
[Black "Pichot, Alan"]
[Result "0-1"]
[Board "229"]
[TimeControl "180+1"]
[WhiteFideId "30901774"]
[BlackFideId "110973"]
[WhiteElo "2440"]
[BlackElo "2816"]
[WhiteTeam "GER"]
[BlackTeam "ESP"]
[WhiteClock "0:00:03"]
[BlackClock "0:00:11"]

1. e4 {[%clk 0:03:00]}  c5 {[%clk 0:02:59]} 2. Nf3 {[%clk 0:02:59]}  d6 {[%clk 0:02:59]} 3. Nc3 {[%clk 0:02:58]}  Nf6 {[%clk 0:02:59]} 4. e5 {[%clk 0:02:58]}  dxe5 {[%clk 0:02:58]} 5. Nxe5 {[%clk 0:02:58]}  a6 {[%clk 0:02:59]} 6. d3 {[%clk 0:02:46]}  Nbd7 {[%clk 0:02:49]} 7. Bf4 {[%clk 0:02:43]}  e6 {[%clk 0:02:45]} 8. g3 {[%clk 0:02:40]}  Nb6 {[%clk 0:02:27]} 9. Bg2 {[%clk 0:02:34]}  Nbd5 {[%clk 0:02:27]} 10. Nxd5 {[%clk 0:02:28]}  Nxd5 {[%clk 0:02:26]} 11. Qf3 {[%clk 0:02:20]}  Qf6 {[%clk 0:01:51]} 12. O-O {[%clk 0:02:04]}  Nxf4 {[%clk 0:01:50]} 13. gxf4 {[%clk 0:02:05]}  Bd6 {[%clk 0:01:47]} 14. Rae1 {[%clk 0:02:00]}  O-O {[%clk 0:01:47]} 15. Re3 {[%clk 0:01:53]}  Rb8 {[%clk 0:01:44]} 16. Qg4 {[%clk 0:01:47]}  b5 {[%clk 0:01:41]} 17. Be4 {[%clk 0:01:44]}  g6 {[%clk 0:01:39]} 18. Rh3 {[%clk 0:01:43]}  Bxe5 {[%clk 0:01:35]} 19. fxe5 {[%clk 0:01:37]}  Qxe5 {[%clk 0:01:36]} 20. Qh4 {[%clk 0:01:36]}  Qg7 {[%clk 0:01:32]} 21. f4 {[%clk 0:01:36]}  Bd7 {[%clk 0:01:29]} 22. Rf2 {[%clk 0:01:34]}  f6 {[%clk 0:01:21]} 23. f5 {[%clk 0:01:32]}  exf5 {[%clk 0:01:15]} 24. Bxf5 {[%clk 0:01:27]}  Bc6 {[%clk 0:00:50]} 25. Rg3 {[%clk 0:00:38]}  Rbe8 {[%clk 0:00:48]} 26. Rf4 {[%clk 0:00:28]}  Re5 {[%clk 0:00:37]} 27. Be4 {[%clk 0:00:23]}  Bxe4 {[%clk 0:00:35]} 28. Rxe4 {[%clk 0:00:24]}  f5 {[%clk 0:00:30]} 29. Rxe5 {[%clk 0:00:15]}  Qxe5 {[%clk 0:00:31]} 30. Qh6 {[%clk 0:00:12]}  Re8 {[%clk 0:00:28]} 31. Kg2 {[%clk 0:00:10]}  Qe2+ {[%clk 0:00:26]} 32. Kh3 {[%clk 0:00:10]}  Re6 {[%clk 0:00:19]} 33. Qg5 {[%clk 0:00:09]}  Kf7 {[%clk 0:00:16]} 34. Qd8 {[%clk 0:00:08]}  Qh5+ {[%clk 0:00:13]} 35. Kg2 {[%clk 0:00:07]}  Re2+ {[%clk 0:00:14]} 36. Kf1 {[%clk 0:00:07]}  Qxh2 {[%clk 0:00:10]} 37. Qd7+ {[%clk 0:00:07]}  Re7 {[%clk 0:00:10]} 38. Qd5+ {[%clk 0:00:07]}  Kg7 {[%clk 0:00:11]} 39. Qd6 {[%clk 0:00:06]}  Qe2+ {[%clk 0:00:08]} 40. Kg1 {[%clk 0:00:06]}  Qe1+ {[%clk 0:00:09]} 41. Kh2 {[%clk 0:00:04]}  Re2+ {[%clk 0:00:09]} 42. Rg2 {[%clk 0:00:02]}  Qh4+ {[%clk 0:00:10]} 43. Kg1 {[%clk 0:00:03]}  Re1# {[%clk 0:00:11]} 0-1

[Event "January 9 Early 2024"]
[Site "https://www.chess.com"]
[Date "2024.01.11"]
[Round "1"]
[White "Pogorelskikh, Sofia"]
[Black "Al-Tarboush, Ward"]
[Result "0-1"]
[Board "231"]
[TimeControl "180+1"]
[WhiteFideId "44164548"]
[BlackFideId "7601450"]
[WhiteElo "2284"]
[BlackElo "2633"]
[WhiteTeam "SRB"]
[BlackTeam "NOR"]
[WhiteClock "0:00:02"]
[BlackClock "0:00:50"]

1. e4 {[%clk 0:03:00]}  e6 {[%clk 0:02:57]} 2. d4 {[%clk 0:03:00]}  d5 {[%clk 0:02:57]} 3. Nc3 {[%clk 0:02:58]}  Nf6 {[%clk 0:02:57]} 4. e5 {[%clk 0:02:56]}  Nfd7 {[%clk 0:02:56]} 5. f4 {[%clk 0:02:55]}  c5 {[%clk 0:02:56]} 6. Nf3 {[%clk 0:02:54]}  Nc6 {[%clk 0:02:56]} 7. Be3 {[%clk 0:02:52]}  a6 {[%clk 0:02:54]} 8. Qd2 {[%clk 0:02:50]}  b5 {[%clk 0:02:54]} 9. a3 {[%clk 0:02:49]}  Bb7 {[%clk 0:02:53]} 10. Bd3 {[%clk 0:02:15]}  Qb6 {[%clk 0:02:37]} 11. Qf2 {[%clk 0:01:37]}  c4 {[%clk 0:02:35]} 12. Be2 {[%clk 0:01:21]}  Ne7 {[%clk 0:02:35]} 13. O-O {[%clk 0:01:06]}  Nf5 {[%clk 0:02:26]} 14. Bd2 {[%clk 0:00:53]}  h5 {[%clk 0:02:25]} 15. Kh1 {[%clk 0:00:45]}  Be7 {[%clk 0:02:23]} 16. g3 {[%clk 0:00:44]}  O-O-O {[%clk 0:02:20]} 17. Kg1 {[%clk 0:00:34]}  Rdg8 {[%clk 0:02:19]} 18. b3 {[%clk 0:00:31]}  Qd8 {[%clk 0:02:09]} 19. a4 {[%clk 0:00:18]}  b4 {[%clk 0:02:08]} 20. Nd1 {[%clk 0:00:16]}  c3 {[%clk 0:02:08]} 21. Be1 {[%clk 0:00:11]}  a5 {[%clk 0:02:07]} 22. Ne3 {[%clk 0:00:12]}  g6 {[%clk 0:02:02]} 23. Bd3 {[%clk 0:00:07]}  Qb6 {[%clk 0:02:02]} 24. Nxf5 {[%clk 0:00:04]}  gxf5 {[%clk 0:02:02]} 25. Qe3 {[%clk 0:00:04]}  h4 {[%clk 0:02:02]} 26. Bf2 {[%clk 0:00:04]}  hxg3 {[%clk 0:02:02]} 27. hxg3 {[%clk 0:00:04]}  Nf8 {[%clk 0:01:59]} 28. Kg2 {[%clk 0:00:04]}  Ng6 {[%clk 0:01:59]} 29. Rh1 {[%clk 0:00:04]}  Ba6 {[%clk 0:01:56]} 30. Bxa6+ {[%clk 0:00:02]}  Qxa6 {[%clk 0:01:57]} 31. Rxh8 {[%clk 0:00:02]}  Rxh8 {[%clk 0:01:57]} 32. Rh1 {[%clk 0:00:02]}  Rxh1 {[%clk 0:01:56]} 33. Kxh1 {[%clk 0:00:02]}  Qf1+ {[%clk 0:01:57]} 34. Ng1 {[%clk 0:00:02]}  Qd1 {[%clk 0:01:54]} 35. Qe2 {[%clk 0:00:02]}  Qxe2 {[%clk 0:01:43]} 36. Nxe2 {[%clk 0:00:03]}  Bd8 {[%clk 0:01:36]} 37. Kg2 {[%clk 0:00:03]}  Bb6 {[%clk 0:01:36]} 38. Kf3 {[%clk 0:00:04]}  Ne7 {[%clk 0:01:34]} 39. Nc1 {[%clk 0:00:03]}  Nc6 {[%clk 0:01:33]} 40. Ne2 {[%clk 0:00:03]}  Kd7 {[%clk 0:01:33]} 41. Be3 {[%clk 0:00:04]}  Ba7 {[%clk 0:01:32]} 42. g4 {[%clk 0:00:03]}  fxg4+ {[%clk 0:01:30]} 43. Kxg4 {[%clk 0:00:04]}  Ne7 {[%clk 0:01:30]} 44. Kf3 {[%clk 0:00:04]}  Nf5 {[%clk 0:01:29]} 45. Bf2 {[%clk 0:00:04]}  Ke7 {[%clk 0:01:28]} 46. Kg4 {[%clk 0:00:04]}  f6 {[%clk 0:01:28]} 47. Kf3 {[%clk 0:00:04]}  Kf7 {[%clk 0:01:26]} 48. Kg4 {[%clk 0:00:05]}  Kg6 {[%clk 0:01:26]} 49. Kf3 {[%clk 0:00:03]}  Nh6 {[%clk 0:01:18]} 50. Kg2 {[%clk 0:00:02]}  fxe5 {[%clk 0:01:10]} 51. fxe5 {[%clk 0:00:02]}  Kf5 {[%clk 0:01:10]} 52. Kf3 {[%clk 0:00:02]}  Nf7 {[%clk 0:00:58]} 53. Ng3+ {[%clk 0:00:02]}  Kg6 {[%clk 0:00:58]} 54. Be3 {[%clk 0:00:02]}  Ng5+ {[%clk 0:00:56]} 55. Ke2 {[%clk 0:00:01]}  Ne4 {[%clk 0:00:50]} 56. Kd3 {[%clk 0:00:02]}  Nxg3 {[%clk 0:00:50]} 0-1

[Event "January 9 Early 2024"]
[Site "https://www.chess.com"]
[Date "2024.01.11"]
[Round "1"]
[White "Sieciechowicz, Marcin"]
[Black "Krzywda, Andrzej"]
[Result "0-1"]
[Board "239"]
[TimeControl "180+1"]
[WhiteFideId "1130170"]
[BlackFideId "1114565"]
[WhiteElo "2689"]
[BlackElo "2399"]
[WhiteTeam "POL"]
[BlackTeam "POL"]
[WhiteClock "0:00:01"]
[BlackClock "0:00:17"]

1. d4 {[%clk 0:02:59]}  d5 {[%clk 0:02:59]} 2. Bf4 {[%clk 0:02:59]}  Nf6 {[%clk 0:02:59]} 3. e3 {[%clk 0:02:59]}  c5 {[%clk 0:03:00]} 4. c3 {[%clk 0:02:59]}  Qb6 {[%clk 0:02:59]} 5. Qb3 {[%clk 0:02:59]}  c4 {[%clk 0:02:58]} 6. Qc2 {[%clk 0:02:59]}  g6 {[%clk 0:02:59]} 7. b3 {[%clk 0:02:43]}  Bf5 {[%clk 0:02:56]} 8. Qd1 {[%clk 0:02:24]}  cxb3 {[%clk 0:02:53]} 9. Qxb3 {[%clk 0:02:19]}  Nc6 {[%clk 0:02:46]} 10. Nd2 {[%clk 0:02:15]}  Bg7 {[%clk 0:02:36]} 11. c4 {[%clk 0:02:12]}  Nxd4 {[%clk 0:01:56]} 12. exd4 {[%clk 0:01:59]}  Qxd4 {[%clk 0:01:56]} 13. Rd1 {[%clk 0:01:39]}  Qxf4 {[%clk 0:01:53]} 14. Ngf3 {[%clk 0:01:32]}  O-O {[%clk 0:01:49]} 15. cxd5 {[%clk 0:01:29]}  Rfd8 {[%clk 0:01:38]} 16. Bc4 {[%clk 0:01:29]}  b5 {[%clk 0:01:24]} 17. Qxb5 {[%clk 0:01:22]}  Rab8 {[%clk 0:01:20]} 18. Qa5 {[%clk 0:01:18]}  Ne4 {[%clk 0:01:11]} 19. Qxa7 {[%clk 0:00:37]}  Nxd2 {[%clk 0:00:39]} 20. Nxd2 {[%clk 0:00:31]}  Bc3 {[%clk 0:00:35]} 21. O-O {[%clk 0:00:19]}  Bxd2 {[%clk 0:00:33]} 22. Bb3 {[%clk 0:00:13]}  Bb4 {[%clk 0:00:30]} 23. Rc1 {[%clk 0:00:08]}  Bd6 {[%clk 0:00:29]} 24. g3 {[%clk 0:00:06]}  Qf3 {[%clk 0:00:29]} 25. Qe3 {[%clk 0:00:05]}  Qxe3 {[%clk 0:00:29]} 26. fxe3 {[%clk 0:00:06]}  Rdc8 {[%clk 0:00:27]} 27. Kf2 {[%clk 0:00:05]}  Ba3 {[%clk 0:00:24]} 28. Rxc8+ {[%clk 0:00:04]}  Rxc8 {[%clk 0:00:24]} 29. e4 {[%clk 0:00:02]}  Bxe4 {[%clk 0:00:20]} 30. Ke3 {[%clk 0:00:02]}  Bf5 {[%clk 0:00:19]} 31. h3 {[%clk 0:00:01]}  Bc5+ {[%clk 0:00:19]} 32. Kd2 {[%clk 0:00:01]}  h5 {[%clk 0:00:18]} 33. d6 {[%clk 0:00:01]}  Bxd6 {[%clk 0:00:18]} 34. g4 {[%clk 0:00:02]}  hxg4 {[%clk 0:00:18]} 35. hxg4 {[%clk 0:00:03]}  Be6 {[%clk 0:00:19]} 36. Bxe6 {[%clk 0:00:03]}  fxe6 {[%clk 0:00:20]} 37. a4 {[%clk 0:00:03]}  Rc4 {[%clk 0:00:19]} 38. Ra1 {[%clk 0:00:03]}  Rxg4 {[%clk 0:00:19]} 39. a5 {[%clk 0:00:04]}  Bb8 {[%clk 0:00:19]} 40. a6 {[%clk 0:00:04]}  Ba7 {[%clk 0:00:19]} 41. Ra5 {[%clk 0:00:02]}  Rb4 {[%clk 0:00:17]} 42. Kc3 {[%clk 0:00:02]}  Rb1 {[%clk 0:00:17]} 43. Kc4 {[%clk 0:00:02]}  Kf7 {[%clk 0:00:17]} 44. Rg5 {[%clk 0:00:01]}  Kf6 {[%clk 0:00:17]} 45. Rg2 {[%clk 0:00:01]}  e5 {[%clk 0:00:17]} 0-1

[Event "January 9 Early 2024"]
[Site "https://www.chess.com"]
[Date "2024.01.11"]
[Round "1"]
[White "Sychev, Klementy"]
[Black "Morales Garcia, Sergio Joshafatt"]
[Result "1-0"]
[Board "241"]
[TimeControl "180+1"]
[WhiteFideId "4114060"]
[BlackFideId "5106249"]
[WhiteElo "2818"]
[BlackElo "2443"]
[WhiteTeam "FID"]
[BlackTeam "MEX"]
[WhiteClock "0:00:13"]
[BlackClock "0:00:02"]

1. e4 {[%clk 0:03:00]}  c5 {[%clk 0:02:59]} 2. Nf3 {[%clk 0:03:00]}  e6 {[%clk 0:03:00]} 3. d4 {[%clk 0:02:59]}  cxd4 {[%clk 0:03:01]} 4. Nxd4 {[%clk 0:02:59]}  Nc6 {[%clk 0:03:01]} 5. Nc3 {[%clk 0:02:57]}  Qc7 {[%clk 0:03:01]} 6. Ndb5 {[%clk 0:02:49]}  Qb8 {[%clk 0:02:59]} 7. a4 {[%clk 0:02:47]}  a6 {[%clk 0:02:55]} 8. Na3 {[%clk 0:02:45]}  Nf6 {[%clk 0:02:46]} 9. g3 {[%clk 0:02:45]}  Bb4 {[%clk 0:02:23]} 10. Bg2 {[%clk 0:02:44]}  Nxe4 {[%clk 0:01:52]} 11. Bxe4 {[%clk 0:02:36]}  Bxc3+ {[%clk 0:01:46]} 12. bxc3 {[%clk 0:02:33]}  Qe5 {[%clk 0:01:47]} 13. f3 {[%clk 0:02:09]}  d5 {[%clk 0:01:36]} 14. Nc4 {[%clk 0:01:08]}  Qxc3+ {[%clk 0:01:22]} 15. Bd2 {[%clk 0:00:59]}  Qxc4 {[%clk 0:01:22]} 16. Bd3 {[%clk 0:00:59]}  Qc5 {[%clk 0:01:22]} 17. Qe2 {[%clk 0:00:48]}  O-O {[%clk 0:01:19]} 18. Be3 {[%clk 0:00:47]}  Qc3+ {[%clk 0:01:19]} 19. Kf2 {[%clk 0:00:46]}  Nb4 {[%clk 0:00:57]} 20. Rab1 {[%clk 0:00:38]}  Bd7 {[%clk 0:00:54]} 21. Kg2 {[%clk 0:00:31]}  Bxa4 {[%clk 0:00:50]} 22. Bd2 {[%clk 0:00:28]}  Qc6 {[%clk 0:00:41]} 23. Bxb4 {[%clk 0:00:20]}  Rfc8 {[%clk 0:00:39]} 24. Rhc1 {[%clk 0:00:20]}  b5 {[%clk 0:00:35]} 25. Ba3 {[%clk 0:00:20]}  Rab8 {[%clk 0:00:30]} 26. Bb2 {[%clk 0:00:20]}  f6 {[%clk 0:00:27]} 27. Ba1 {[%clk 0:00:17]}  a5 {[%clk 0:00:19]} 28. Kg1 {[%clk 0:00:15]}  b4 {[%clk 0:00:18]} 29. f4 {[%clk 0:00:16]}  Qc5+ {[%clk 0:00:16]} 30. Kg2 {[%clk 0:00:15]}  Qc6 {[%clk 0:00:14]} 31. Qh5 {[%clk 0:00:15]}  f5 {[%clk 0:00:12]} 32. Be5 {[%clk 0:00:14]}  Rb7 {[%clk 0:00:11]} 33. Qf3 {[%clk 0:00:14]}  Rd7 {[%clk 0:00:08]} 34. Qe3 {[%clk 0:00:13]}  d4+ {[%clk 0:00:06]} 35. Qf3 {[%clk 0:00:14]}  Qxf3+ {[%clk 0:00:06]} 36. Kxf3 {[%clk 0:00:14]}  Rd5 {[%clk 0:00:06]} 37. Ke2 {[%clk 0:00:13]}  Rdc5 {[%clk 0:00:05]} 38. Bxd4 {[%clk 0:00:13]}  R5c6 {[%clk 0:00:05]} 39. Rb2 {[%clk 0:00:13]}  b3 {[%clk 0:00:05]} 40. c4 {[%clk 0:00:12]}  Kf7 {[%clk 0:00:04]} 41. c5 {[%clk 0:00:12]}  Ke7 {[%clk 0:00:04]} 42. Ke3 {[%clk 0:00:12]}  Kd7 {[%clk 0:00:03]} 43. Ra1 {[%clk 0:00:13]}  Rxc5 {[%clk 0:00:01]} 44. Bxc5 {[%clk 0:00:13]}  Rxc5 {[%clk 0:00:02]} 45. Rxa4 {[%clk 0:00:13]} 1-0